Workbook

Sheet Add File 9
B1: DNA | J1: A/G ratio | M1: A/G ratio/mean* | P1: Mean of (M-O) | Q1: mean risk/ mean non-risk | R1: cDNA | Z1: A/G ratio | AC1: A/G ratio/mean* | AF1: Mean of (AC-AE) | AG1: mean risk/ mean non-risk
A2: Patient ID | B2: G | C2: G | D2: G | E2: Mean | F2: A | G2: A | H2: A | I2: Mean | J2: A/G | K2: A/G | L2: A/G | M2: A/G | N2: A/G | O2: A/G | P2: Mean | Q2: MEAN | R2: G | S2: G | T2: G | U2: Mean | V2: A | W2: A | X2: A | Y2: Mean | Z2: A/G | AA2: A/G | AB2: A/G | AC2: A/G | AD2: A/G | AE2: A/G | AF2: Mean | AG2: MEAN
A3: 6 | B3: 45.45 | C3: 50.82 | D3: 48.18 | E3: =AVERAGE(B3:D3) -> 48.15 | F3: 54.55 | G3: 49.18 | H3: 51.82 | I3: =AVERAGE(F3:H3) -> 51.85 | J3: =F3/B3 -> 1.20 | K3: =G3/C3 -> 0.97 | L3: =H3/D3 -> 1.08 | M3: =J3/$Q3 -> 1.11 | N3: =K3/$Q3 -> 0.90 | O3: =L3/$Q3 -> 1.00 | P3: =AVERAGE(M3:O3) -> 1.00 | Q3: =I3/E3 -> 1.08 | R3: 47.06 | S3: 44.31 | T3: 43.69 | U3: =AVERAGE(R3:T3) -> 45.02 | V3: 52.94 | W3: 55.69 | X3: 56.31 | Y3: =AVERAGE(V3:X3) -> 54.98 | Z3: =V3/R3 -> 1.12 | AA3: =W3/S3 -> 1.26 | AB3: =X3/T3 -> 1.29 | AC3: =Z3/$Q3 -> 1.04 | AD3: =AA3/$Q3 -> 1.17 | AE3: =AB3/$Q3 -> 1.20 | AF3: =AVERAGE(AC3:AE3) -> 1.14 | AG3: =Y3/U3 -> 1.22
A4: 51 | B4: 47.81 | C4: 48.31 | D4: 48.38 | E4: 48.17 | F4: 52.19 | G4: 51.69 | H4: 51.62 | I4: 51.83 | J4: 1.09 | K4: 1.07 | L4: 1.07 | M4: 1.01 | N4: 0.99 | O4: 0.99 | P4: 1.00 | Q4: 1.08 | R4: 43.06 | S4: 44.5 | T4: 43.1 | U4: 43.55 | V4: 56.94 | W4: 55.5 | X4: 56.9 | Y4: 56.45 | Z4: 1.32 | AA4: 1.25 | AB4: 1.32 | AC4: 1.23 | AD4: 1.16 | AE4: 1.23 | AF4: 1.20 | AG4: 1.30
A5: 57 | B5: 49.53 | C5: 48.71 | D5: 47.85 | E5: 48.70 | F5: 50.47 | G5: 51.29 | H5: 52.15 | I5: 51.30 | J5: 1.02 | K5: 1.05 | L5: 1.09 | M5: 0.97 | N5: 1.00 | O5: 1.03 | P5: 1.00 | Q5: 1.05 | R5: 42.1 | S5: 36.69 | T5: 49.49 | U5: 42.76 | V5: 57.9 | W5: 63.31 | X5: 50.51 | Y5: 57.24 | Z5: 1.38 | AA5: 1.73 | AB5: 1.02 | AC5: 1.31 | AD5: 1.64 | AE5: 0.97 | AF5: 1.30 | AG5: 1.34
A6: 76 | B6: 49.05 | C6: 50.21 | D6: 48 | E6: 49.09 | F6: 50.95 | G6: 49.79 | H6: 52 | I6: 50.91 | J6: 1.04 | K6: 0.99 | L6: 1.08 | M6: 1.00 | N6: 0.96 | O6: 1.04 | P6: 1.00 | Q6: 1.04 | R6: 46.4 | S6: 43.25 | T6: 43.72 | U6: 44.46 | V6: 53.6 | W6: 56.75 | X6: 56.28 | Y6: 55.54 | Z6: 1.16 | AA6: 1.31 | AB6: 1.29 | AC6: 1.11 | AD6: 1.27 | AE6: 1.24 | AF6: 1.21 | AG6: 1.25
A7: 78 | B7: 47.52 | C7: 47.02 | D7: 46.63 | E7: 47.06 | F7: 52.48 | G7: 52.98 | H7: 53.37 | I7: 52.94 | J7: 1.10 | K7: 1.13 | L7: 1.14 | M7: 0.98 | N7: 1.00 | O7: 1.02 | P7: 1.00 | Q7: 1.13 | R7: 47.7 | S7: 46.08 | T7: 46.76 | U7: 46.85 | V7: 52.3 | W7: 53.92 | X7: 53.24 | Y7: 53.15 | Z7: 1.10 | AA7: 1.17 | AB7: 1.14 | AC7: 0.97 | AD7: 1.04 | AE7: 1.01 | AF7: 1.01 | AG7: 1.13
A8: 93 | B8: 49.89 | C8: 48.38 | D8: 47 | E8: 48.42 | F8: 50.11 | G8: 51.62 | H8: 53 | I8: 51.58 | J8: 1.00 | K8: 1.07 | L8: 1.13 | M8: 0.94 | N8: 1.00 | O8: 1.06 | P8: 1.00 | Q8: 1.07 | R8: 43.49 | S8: 41.51 | T8: 43.16 | U8: 42.72 | V8: 56.51 | W8: 58.49 | X8: 56.84 | Y8: 57.28 | Z8: 1.30 | AA8: 1.41 | AB8: 1.32 | AC8: 1.22 | AD8: 1.32 | AE8: 1.24 | AF8: 1.26 | AG8: 1.34
A9: 96 | B9: 47.31 | C9: 47.83 | D9: 47.19 | E9: 47.44 | F9: 52.69 | G9: 52.17 | H9: 52.81 | I9: 52.56 | J9: 1.11 | K9: 1.09 | L9: 1.12 | M9: 1.01 | N9: 0.98 | O9: 1.01 | P9: 1.00 | Q9: 1.11 | R9: 48.34 | S9: 45.61 | T9: 46.74 | U9: 46.90 | V9: 51.66 | W9: 54.39 | X9: 53.26 | Y9: 53.10 | Z9: 1.07 | AA9: 1.19 | AB9: 1.14 | AC9: 0.96 | AD9: 1.08 | AE9: 1.03 | AF9: 1.02 | AG9: 1.13
A10: 99 | B10: 49.37 | C10: 49.64 | D10: 49.34 | E10: 49.45 | F10: 50.63 | G10: 50.36 | H10: 50.66 | I10: 50.55 | J10: 1.03 | K10: 1.01 | L10: 1.03 | M10: 1.00 | N10: 0.99 | O10: 1.00 | P10: 1.00 | Q10: 1.02 | R10: 49.52 | S10: 43.31 | T10: 43.05 | U10: 45.29 | V10: 50.48 | W10: 56.69 | X10: 56.95 | Y10: 54.71 | Z10: 1.02 | AA10: 1.31 | AB10: 1.32 | AC10: 1.00 | AD10: 1.28 | AE10: 1.29 | AF10: 1.19 | AG10: 1.21
A11: 114 | B11: 46 | C11: 47.48 | D11: 46.79 | E11: 46.76 | F11: 54 | G11: 52.52 | H11: 53.21 | I11: 53.24 | J11: 1.17 | K11: 1.11 | L11: 1.14 | M11: 1.03 | N11: 0.97 | O11: 1.00 | P11: 1.00 | Q11: 1.14 | R11: 46.83 | S11: 47.24 | T11: 48.26 | U11: 47.44 | V11: 53.17 | W11: 52.76 | X11: 51.74 | Y11: 52.56 | Z11: 1.14 | AA11: 1.12 | AB11: 1.07 | AC11: 1.00 | AD11: 0.98 | AE11: 0.94 | AF11: 0.97 | AG11: 1.11
A14: Additional file 9: Data from the allelic expression imbalance (AEI) analysis of WWP2 using transcript SNP rs1052429.
